fUST/lending_fUST_20250829
["ID","MTS","AMOUNT","RATE_DAILY","PERIOD"]
[381921009,1756408999681,-500.0,0.00042739,120]
[381921010,1756408999707,-439.13384963,0.00043247,28]
[381921011,1756408999732,-500.0,0.00043287,120]
[381921012,1756408999757,-500.0,0.00043835,120]
[381921013,1756408999783,-4893.09314852,0.00044072,43]
[381921014,1756408999808,-500.0,0.00044383,120]
[381921015,1756408999832,-295.96739355,0.00044931,120]
[381921016,1756408999858,-4893.09314852,0.00045798,47]
[381921017,1756408999882,-1000.0,0.00046027,60]
[381921018,1756408999908,-363.502,0.0004612,76]
[381921019,1756408999933,-1000.0,0.00046575,60]
[381921020,1756408999958,-1000.0,0.00047123,60]
[381921021,1756408999984,-4893.09314852,0.00047525,50]
[381921022,1756409000008,-1000.0,0.00047671,60]
[381921023,1756409000032,-345.99,0.00047707,7]
[381921024,1756409000056,-500.0,0.00047778,7]
[381921025,1756409000081,-8948.14,0.00048,7]
[381921026,1756409000106,-217.0,0.00048,90]
[381921027,1756409000132,-286.21086557,0.00048054,120]
[381921028,1756409000157,-1000.0,0.00048219,60]
[381921029,1756409000181,-1000.0,0.00048767,60]
[381921030,1756409000321,-2264.10087164,0.00048946,60]
[381921031,1756409000347,-2183.31810187,0.00048998,35]
[381921032,1756409000371,-181.08010149,0.00048998,35]
[381921033,1756409000398,-2105.41764886,0.00048999,35]
[381921034,1756409000423,-174.61919141,0.00048999,35]
[381921035,1756409000451,-1995.631127,0.00049,21]
[381921036,1756409000478,-2030.296672,0.00049014,30]
[381921037,1756409000503,-168.3888056,0.00049014,30]
[381921038,1756409000528,-439.13384963,0.00049221,28]
[381921039,1756409000554,-1957.856,0.0004925,54]
[381921040,1756409000579,-162.380719,0.0004925,54]
[381921041,1756409000607,-4893.09314852,0.00049251,54]
[381921042,1756409000632,-151.0,0.00049314,30]
[381921043,1756409000657,-1888.0,0.00049314,30]
[381921044,1756409000682,-156.587,0.00049314,120]
[381921045,1756409000706,-2000.0,0.00049314,30]
[381921046,1756409000731,-2347.87260389,0.00049315,7]
[381921047,1756409000755,-187.78006525,0.00049315,7]
[381921048,1756409000780,-1874.4075946,0.00049315,7]
[381921049,1756409000804,-939.18584,0.00049315,7]
[381921050,1756409000829,-194.72792766,0.00049315,7]
[381921051,1756409000853,-296.49435724,0.00049315,7]
[381921052,1756409000892,3322.28,0.00032877,10]
[381921053,1756409009838,2768.56,0.00032877,10]
[381921136,1756409438090,-2373.21592774,0.00019,2]
[381921137,1756409438101,-300.0,0.00019177,2]
[381921138,1756409438112,-480.0,0.00019178,2]
[381921139,1756409438123,-480.0,0.00019178,2]
[381921140,1756409438134,-480.0,0.00019178,2]
[381921142,1756409438145,-480.0,0.00019178,2]
[381921144,1756409438155,-480.0,0.00019178,2]
[381921145,1756409438167,-5000.0,0.00019178,2]
[381921146,1756409438177,-480.0,0.00019449,2]
[381921147,1756409438190,-480.0,0.00019449,2]
[381921148,1756409438201,-494.4,0.00019449,2]
[381921149,1756409438213,-480.0,0.00019449,2]
[381921150,1756409438223,-480.0,0.00019449,2]
[381921151,1756409438234,-480.0,0.00019449,2]
[381921152,1756409438244,-488.72,0.00019449,2]
[381921153,1756409438255,-480.0,0.00019449,2]
[381921154,1756409438265,-480.0,0.0001945,2]
[381921155,1756409438275,-2520.38,0.0001945,2]
[381921156,1756409438286,-480.0,0.0001945,2]
[381921157,1756409438297,-480.0,0.0001945,2]
[381921158,1756409438309,-5512.36,0.0001945,2]
[381921159,1756409438320,-480.0,0.0001945,2]
[381921160,1756409438330,-480.0,0.0001945,2]
[381921161,1756409438340,-480.0,0.0001945,2]
[381921162,1756409438350,-480.0,0.0001945,2]
[381921163,1756409438361,-480.0,0.0001945,2]
[381921164,1756409438372,-480.0,0.0001945,2]
[381921165,1756409438382,-480.0,0.0001945,2]
[381921166,1756409438393,-480.0,0.0001945,2]
[381921167,1756409438404,-480.0,0.0001945,2]
[381921168,1756409438414,-2445.38,0.0001945,2]
[381921169,1756409438424,-480.0,0.0001945,2]
[381921170,1756409438436,-480.0,0.0001945,2]
[381921171,1756409438446,-480.0,0.0001945,2]
[381921172,1756409438456,-480.0,0.0001945,2]
[381921173,1756409438465,-164.72683111,0.0001945,2]
[381921174,1756409438475,-480.0,0.0001945,2]
[381921175,1756409438489,-715.62,0.0001945,2]
[381921176,1756409438500,-480.0,0.0001945,2]
[381921177,1756409438513,-5942.04,0.0001945,2]
[381921178,1756409438523,-552.89,0.0001945,2]
[381921179,1756409438533,-480.0,0.0001945,2]
[381921180,1756409438545,-480.0,0.0001945,2]
[381921181,1756409438556,-482.39,0.0001945,2]
[381921182,1756409438571,-480.0,0.00019451,2]
[381921183,1756409438582,-480.0,0.00019451,2]
[381921184,1756409438593,-480.0,0.00019451,2]
[381921185,1756409438603,-480.0,0.00019451,2]
[381921186,1756409438613,-480.0,0.00019451,2]
[381921187,1756409438623,-480.0,0.00019451,2]
[381921188,1756409438633,-480.0,0.00019451,2]
[381921189,1756409438644,-480.0,0.00019451,2]
[381921190,1756409438655,-500.83,0.00019451,2]
[381921191,1756409438666,-480.0,0.00019451,2]
[381921192,1756409438678,-480.0,0.00019451,2]
[381921193,1756409438690,-480.0,0.00019451,2]
[381921194,1756409438701,-480.0,0.00019451,2]
[381921195,1756409438712,-480.0,0.00019451,2]
[381921196,1756409438724,-3344.71,0.00019451,2]
[381921197,1756409438734,-484.74,0.00019451,2]
[381921198,1756409438746,-480.0,0.00019451,2]
[381921199,1756409438756,-655.83,0.00019451,2]
[381921200,1756409438767,-480.0,0.00019451,2]
[381921201,1756409438776,-480.0,0.00019451,2]
[381921202,1756409438787,-579.6,0.00019451,2]
[381921203,1756409438797,-480.0,0.00019451,2]
[381921204,1756409438807,-480.0,0.00019451,2]
[381921205,1756409438819,-480.0,0.00019451,2]
[381921206,1756409438831,-3490.11,0.00019451,2]
[381921207,1756409438843,-480.0,0.00019451,2]
[381921208,1756409438854,-480.0,0.00019451,2]
[381921209,1756409438866,-480.0,0.00019451,2]
[381921210,1756409438879,-480.0,0.00019451,2]
[381921211,1756409438891,-480.0,0.00019451,2]
[381921212,1756409438901,-480.0,0.00019451,2]
[381921213,1756409438913,-480.0,0.00019451,2]
[381921214,1756409438924,-480.0,0.00019451,2]
[381921215,1756409438934,-480.0,0.00019451,2]
[381921216,1756409438944,-480.0,0.00019451,2]
[381921217,1756409438954,-585.05315856,0.00019451,2]
[381921218,1756409438964,-480.0,0.00019451,2]
[381921219,1756409438974,-480.0,0.00019451,2]
[381921220,1756409438985,-480.0,0.00019451,2]
[381921221,1756409438995,-480.0,0.00019451,2]
[381921222,1756409439005,-424.59656544,0.00019451,2]
[381921223,1756409439015,-480.0,0.00019451,2]
[381921224,1756409439027,-593.11,0.00019451,2]
[381921225,1756409439038,-480.0,0.00019452,2]
[381921226,1756409439049,-480.0,0.00019452,2]
[381921227,1756409439059,-480.0,0.00019452,2]
[381921228,1756409439071,-500.0,0.00019473,2]
[381921229,1756409439081,-300.0,0.00019561,20]
[381921230,1756409439090,-300.0,0.00019561,20]
[381921231,1756409439100,-300.0,0.00019561,20]
[381921232,1756409439111,-300.0,0.00019561,20]
[381921233,1756409439121,-300.0,0.00019561,20]
[381921234,1756409439131,-300.0,0.00019561,20]
[381921235,1756409439140,-300.0,0.00019561,20]
[381921236,1756409439152,-300.0,0.00019561,20]
[381921237,1756409439163,-300.0,0.00019561,20]
[381921238,1756409439174,-300.0,0.00019561,20]
[381921239,1756409439184,-300.0,0.00019561,20]
[381921240,1756409439194,-300.0,0.00019561,20]
[381921241,1756409439204,-300.0,0.00019561,20]
[381921242,1756409439214,-300.0,0.00019561,20]
[381921243,1756409439224,-300.0,0.00019561,20]
[381921244,1756409439235,-480.0,0.00019723,2]
[381921245,1756409439246,-494.4,0.00019723,2]
[381921246,1756409439256,-516.52,0.00019723,2]
[381921247,1756409439266,-480.0,0.00019723,2]
[381921248,1756409439276,-480.0,0.00019723,2]
[381921249,1756409439287,-488.72,0.00019723,2]
[381921250,1756409439298,-480.0,0.00019723,2]
[381921251,1756409439309,-247.13,0.00019724,2]
[381921252,1756409439321,-2520.38,0.00019724,2]
[381921253,1756409439331,-480.0,0.00019724,2]
[381921254,1756409439343,-5512.36,0.00019724,2]
[381921255,1756409439354,-480.0,0.00019724,2]
[381921256,1756409439365,-480.0,0.00019724,2]
[381921257,1756409439375,-480.0,0.00019724,2]
[381921258,1756409439385,-480.0,0.00019724,2]
[381921259,1756409439396,-480.0,0.00019724,2]
[381921260,1756409439406,-605.39,0.00019724,2]
[381921261,1756409439417,-2445.38,0.00019724,2]
[381921262,1756409439427,-480.0,0.00019724,2]
[381921263,1756409439437,-480.0,0.00019724,2]
[381921264,1756409439449,-480.0,0.00019724,2]
[381921266,1756409439460,-480.0,0.00019724,2]
[381921268,1756409439471,-715.62,0.00019724,2]
[381921269,1756409439483,-5942.04,0.00019724,2]
[381921270,1756409439494,-552.89,0.00019724,2]
[381921271,1756409439504,-480.0,0.00019724,2]
[381921272,1756409439515,-480.0,0.00019724,2]
[381921273,1756409439526,-482.39,0.00019724,2]
[381921274,1756409439536,-480.0,0.00019725,2]
[381921276,1756409439546,-196.67,0.00019725,2]
[381921278,1756409439558,-480.0,0.00019725,2]
[381921280,1756409439568,-480.0,0.00019725,2]
[381921281,1756409439578,-480.0,0.00019725,2]
[381921282,1756409439589,-480.0,0.00019725,2]
[381921283,1756409439599,-478.33,0.00019725,2]
[381921285,1756409439609,-544.82,0.00019725,2]
[381921286,1756409439620,-3344.71,0.00019725,2]
[381921287,1756409439630,-655.83,0.00019725,2]
[381921288,1756409439640,-480.0,0.00019725,2]
[381921289,1756409439650,-480.0,0.00019725,2]
[381921290,1756409439660,-3490.11,0.00019725,2]
[381921291,1756409439670,-480.0,0.00019725,2]
[381921292,1756409439680,-276.19,0.00019725,2]
[381921293,1756409439690,-480.0,0.00019725,2]
[381921294,1756409439700,-434.02,0.00019725,2]
[381921295,1756409439711,-480.0,0.00019726,2]
[381921296,1756409439721,-336.9357933,0.00019726,2]
[381921297,1756409439731,-480.0,0.00019726,2]
[381921298,1756409439741,-500.0,0.00019773,2]
[381921299,1756409439753,-500.0,0.00019773,2]
[381921300,1756409439763,-211.966536,0.00019863,2]
[381921301,1756409439773,-3780.25702134,0.000199,2]
[381921320,1756409439948,-500.0,0.00019973,2]
[381921321,1756409439958,-500.0,0.00019973,2]
[381921322,1756409439968,-296.98012232,0.00019973,2]
[381921323,1756409439977,-500.0,0.00019973,2]
[381921324,1756409439986,-500.0,0.00019973,2]
[381921325,1756409439995,-500.0,0.00019973,2]
[381921326,1756409440005,-500.0,0.00019973,2]
[381921327,1756409440015,-327.25911731,0.00019973,2]
[381921328,1756409440024,-500.0,0.00019973,2]
[381921329,1756409440034,-480.0,0.00019997,2]
[381921330,1756409440043,-494.4,0.00019997,2]
[381921331,1756409440052,-480.0,0.00019997,2]
[381921332,1756409440061,-480.0,0.00019997,2]
[381921333,1756409440070,-488.72,0.00019997,2]
[381921334,1756409440079,-480.0,0.00019997,2]
[381921335,1756409440089,-2520.38,0.00019998,2]
[381921336,1756409440098,-480.0,0.00019998,2]
[381921337,1756409440107,-5512.36,0.00019998,2]
[381921339,1756409440116,-480.0,0.00019998,2]
[381921341,1756409440126,-480.0,0.00019998,2]
[381921343,1756409440135,-480.0,0.00019998,2]
[381921345,1756409440145,-480.0,0.00019998,2]
[381921347,1756409440154,-480.0,0.00019998,2]
[381921349,1756409440163,-2445.38,0.00019998,2]
[381921351,1756409440172,-480.0,0.00019998,2]
[381921353,1756409440182,-282.72736499,0.00019998,2]
[381921355,1756409440191,-480.0,0.00019998,2]
[381921357,1756409440200,-480.0,0.00019998,2]
[381921359,1756409440210,-715.62,0.00019998,2]
[381921360,1756409440219,-5942.04,0.00019998,2]
[381921361,1756409440228,-552.89,0.00019998,2]
[381921362,1756409440237,-480.0,0.00019998,2]
[381921363,1756409440247,-480.0,0.00019998,2]
[381921364,1756409440257,-482.39,0.00019998,2]
[381921365,1756409440267,-480.0,0.00019999,2]
[381921366,1756409440277,-480.0,0.00019999,2]
[381921367,1756409440287,-480.0,0.00019999,2]
[381921368,1756409440297,-407.4,0.00019999,2]
[381921369,1756409440306,-480.0,0.00019999,2]
[381921370,1756409440315,-3344.71,0.00019999,2]
[381921371,1756409440324,-655.83,0.00019999,2]
[381921372,1756409440334,-480.0,0.00019999,2]
[381921373,1756409440344,-3490.11,0.00019999,2]
[381921374,1756409440354,-480.0,0.00019999,2]
[381921375,1756409440364,-480.0,0.00019999,2]
[381921376,1756409440374,-151.0,0.0002,2]
[381921377,1756409440383,-151.0,0.0002,2]
[381921378,1756409440392,-151.0,0.0002,2]
[381921379,1756409440402,-151.0,0.0002,2]
[381921380,1756409440412,-480.0,0.0002,2]
[381921381,1756409440421,-480.0,0.0002,2]
[381921382,1756409440430,-160.0,0.0002,3]
[381921383,1756409440439,-1000.0,0.00020021,2]
[381921384,1756409440448,-500.0,0.00020073,2]
[381921385,1756409440458,-500.0,0.000202,2]
[381921386,1756409440467,-500.0,0.00020252,2]
[381921387,1756409440476,-500.0,0.00020252,2]
[381921388,1756409440490,-480.0,0.00020271,2]
[381921389,1756409440499,-494.4,0.00020271,2]
[381921390,1756409440508,-480.0,0.00020271,2]
[381921391,1756409440517,-480.0,0.00020271,2]
[381921392,1756409440526,-488.72,0.00020271,2]
[381921393,1756409440537,-313.41,0.00020271,2]
[381921394,1756409440546,-2520.38,0.00020272,2]
[381921395,1756409440556,-480.0,0.00020272,2]
[381921396,1756409440566,-5512.36,0.00020272,2]
[381921397,1756409440575,-326.46367765,0.00020272,2]
[381921398,1756409440585,-480.0,0.00020272,2]
[381921399,1756409440594,-348.56,0.00020272,2]
[381921400,1756409440603,-480.0,0.00020272,2]
[381921401,1756409440612,-480.0,0.00020272,2]
[381921402,1756409440621,-2445.38,0.00020272,2]
[381921403,1756409440630,-480.0,0.00020272,2]
[381921404,1756409440639,-480.0,0.00020272,2]
[381921405,1756409440648,-480.0,0.00020272,2]
[381921406,1756409440657,-715.62,0.00020272,2]
[381921407,1756409440666,-5942.04,0.00020272,2]
[381921408,1756409440675,-552.89,0.00020272,2]
[381921409,1756409440684,-253.21,0.00020272,2]
[381921410,1756409440694,-480.0,0.00020272,2]
[381921411,1756409440703,-482.39,0.00020272,2]
[381921412,1756409440712,-379.70577481,0.00020273,2]
[381921413,1756409440721,-480.0,0.00020273,2]
[381921414,1756409440730,-480.0,0.00020273,2]
[381921415,1756409440739,-480.0,0.00020273,2]
[381921416,1756409440748,-480.0,0.00020273,2]
[381921417,1756409440757,-3344.71,0.00020273,2]
[381921418,1756409440767,-655.83,0.00020273,2]
[381921419,1756409440776,-155.12502285,0.00020273,2]
[381921420,1756409440785,-3490.11,0.00020273,2]
[381921421,1756409440795,-480.0,0.00020273,2]
[381921422,1756409440804,-480.0,0.00020273,2]
[381921423,1756409440813,-151.0,0.00020274,2]
[381921424,1756409440823,-160.0,0.00020301,2]
[381921425,1756409440832,-160.0,0.00020301,2]
[381921426,1756409440841,-845.47023312,0.00020301,2]
[381921427,1756409440850,-160.0,0.00020301,2]
[381921428,1756409440859,-216.18903889,0.00020301,2]
[381921429,1756409440869,-425.52029335,0.00020301,2]
[381921430,1756409440878,-529.67291817,0.00020301,2]
[381921431,1756409440887,-160.0,0.00020301,2]
[381921432,1756409440897,-12710.44222334,0.00020301,2]
[381921433,1756409440906,-160.0,0.00020301,2]
[381921434,1756409440915,-232.64478309,0.00020301,2]
[381921435,1756409440924,-160.0,0.00020301,2]
[381921436,1756409440933,-417.15472785,0.00020301,2]
[381921437,1756409440942,-217.27834477,0.00020301,2]
[381921438,1756409440951,-160.0,0.00020301,2]
[381921439,1756409440960,-1000.0,0.00020321,2]
[381921440,1756409440969,-500.0,0.00020321,2]
[381921441,1756409440980,-500.0,0.00020521,2]
[381921442,1756409440989,-500.0,0.00020521,2]
[381921443,1756409441000,-1000.0,0.00020521,2]
[381921444,1756409441010,-500.0,0.00020521,2]
[381921445,1756409441020,-500.0,0.00020521,2]
[381921446,1756409441030,-1000.0,0.00020521,2]
[381921447,1756409441039,-1020.03551996,0.00020521,2]
[381921448,1756409441048,-480.0,0.00020545,2]
[381921449,1756409441057,-494.4,0.00020545,2]
[381921450,1756409441067,-413.34,0.00020545,2]
[381921451,1756409441076,-480.0,0.00020545,2]
[381921452,1756409441085,-488.72,0.00020545,2]
[381921453,1756409441096,-2520.38,0.00020546,2]
[381921454,1756409441105,-480.0,0.00020546,2]
[381921455,1756409441114,-5512.36,0.00020546,2]
[381921456,1756409441124,-480.0,0.00020546,2]
[381921457,1756409441133,-480.0,0.00020546,2]
[381921458,1756409441142,-480.0,0.00020546,2]
[381921459,1756409441151,-2445.38,0.00020546,2]
[381921460,1756409441161,-480.0,0.00020546,2]
[381921461,1756409441170,-480.0,0.00020546,2]
[381921462,1756409441179,-480.0,0.00020546,2]
[381921463,1756409441190,-715.62,0.00020546,2]
[381921464,1756409441199,-5942.04,0.00020546,2]
[381921465,1756409441208,-552.89,0.00020546,2]
[381921466,1756409441218,-480.0,0.00020546,2]
[381921467,1756409441228,-482.39,0.00020546,2]
[381921468,1756409441237,-480.0,0.00020547,2]
[381921469,1756409441247,-480.0,0.00020547,2]
[381921470,1756409441256,-480.0,0.00020547,2]
[381921471,1756409441266,-480.0,0.00020547,2]
[381921472,1756409441275,-3344.71,0.00020547,2]
[381921473,1756409441284,-655.83,0.00020547,2]
[381921474,1756409441293,-3490.11,0.00020547,2]
[381921475,1756409441304,-480.0,0.00020547,2]
[381921476,1756409441313,-198.0,0.00020548,2]
[381921477,1756409441323,-1500.0,0.00020568,2]
[381921478,1756409441333,-1000.0,0.00020621,2]
[381921479,1756409441342,-659.12088367,0.00020748,2]
[381921480,1756409441351,-1000.0,0.000208,2]
[381921481,1756409441361,-500.0,0.000208,2]
[381921482,1756409441371,-480.0,0.00020819,2]
[381921483,1756409441380,-494.4,0.00020819,2]
[381921484,1756409441389,-191.91,0.00020819,2]
[381921485,1756409441399,-488.72,0.00020819,2]
[381921486,1756409441408,-2520.38,0.0002082,2]
[381921487,1756409441417,-480.0,0.0002082,2]
[381921488,1756409441427,-5512.36,0.0002082,2]
[381921489,1756409441436,-480.0,0.0002082,2]
[381921490,1756409441446,-480.0,0.0002082,2]
[381921491,1756409441455,-621.37847881,0.0002082,2]
[381921492,1756409441464,-2445.38,0.0002082,2]
[381921493,1756409441474,-480.0,0.0002082,2]
[381921494,1756409441485,-480.0,0.0002082,2]
[381921495,1756409441495,-715.62,0.0002082,2]
[381921496,1756409441504,-5942.04,0.0002082,2]
[381921497,1756409441514,-552.89,0.0002082,2]
[381921498,1756409441523,-521.59,0.0002082,2]
[381921499,1756409441534,-482.39,0.0002082,2]
[381921500,1756409441543,-480.0,0.00020821,2]
[381921501,1756409441552,-480.0,0.00020821,2]
[381921502,1756409441564,-480.0,0.00020821,2]
[381921503,1756409441574,-480.0,0.00020821,2]
[381921504,1756409441583,-3344.71,0.00020821,2]
[381921505,1756409441592,-655.83,0.00020821,2]
[381921506,1756409441601,-3490.11,0.00020821,2]
[381921507,1756409441611,-376.28952875,0.00020821,2]
[381921508,1756409441620,-1500.0,0.00020868,2]
[381921509,1756409441629,-420.0,0.00020899,2]
[381921510,1756409441638,-687.18273994,0.00020995,2]
[381921511,1756409441647,-500.0,0.00021068,2]
[381921512,1756409441656,-1500.0,0.00021068,2]
[381921513,1756409441665,-480.0,0.00021093,2]
[381921514,1756409441675,-494.4,0.00021093,2]
[381921515,1756409441684,-488.72,0.00021093,2]
[381921516,1756409441693,-2520.38,0.00021094,2]
[381921517,1756409441703,-480.0,0.00021094,2]
[381921518,1756409441713,-5512.36,0.00021094,2]
[381921519,1756409441722,-480.0,0.00021094,2]
[381921520,1756409441731,-2445.38,0.00021094,2]
[381921521,1756409441740,-480.0,0.00021094,2]
[381921522,1756409441749,-480.0,0.00021094,2]
[381921523,1756409441758,-715.62,0.00021094,2]
[381921524,1756409441767,-5942.04,0.00021094,2]
[381921525,1756409441776,-552.89,0.00021094,2]
[381921526,1756409441786,-482.39,0.00021094,2]
[381921527,1756409441795,-480.0,0.00021095,2]
[381921528,1756409441804,-480.0,0.00021095,2]
[381921529,1756409441813,-480.0,0.00021095,2]
[381921530,1756409441822,-480.0,0.00021095,2]
[381921531,1756409441831,-3344.71,0.00021095,2]
[381921532,1756409441840,-655.83,0.00021095,2]
[381921533,1756409441849,-3490.11,0.00021095,2]
[381921534,1756409441859,-521.25177441,0.00021116,2]
[381921535,1756409441868,-798.21580705,0.00021169,2]
[381921536,1756409441877,-662.82809819,0.00021248,2]
[381921537,1756409441887,-100000.0,0.00021263,2]
[381921538,1756409441895,-500.0,0.00021273,2]
[381921539,1756409441905,-500.0,0.00021273,2]
[381921540,1756409441914,-536.3278538,0.00021348,2]
[381921541,1756409441924,-480.0,0.00021367,2]
[381921542,1756409441934,-494.4,0.00021367,2]
[381921543,1756409441944,-488.72,0.00021367,2]
[381921544,1756409441956,-2520.38,0.00021368,2]
[381921545,1756409441967,-480.0,0.00021368,2]
[381921546,1756409441978,-5512.36,0.00021368,2]
[381921547,1756409441989,-480.0,0.00021368,2]
[381921548,1756409441999,-2445.38,0.00021368,2]
[381921549,1756409442008,-480.0,0.00021368,2]
[381921550,1756409442018,-480.0,0.00021368,2]
[381921551,1756409442028,-715.62,0.00021368,2]
[381921552,1756409442040,-5942.04,0.00021368,2]
[381921553,1756409442050,-552.89,0.00021368,2]
[381921554,1756409442061,-482.39,0.00021368,2]
[381921555,1756409442070,-480.0,0.00021369,2]
[381921556,1756409442080,-480.0,0.00021369,2]
[381921557,1756409442089,-480.0,0.00021369,2]
[381921558,1756409442100,-480.0,0.00021369,2]
[381921559,1756409442111,-3344.71,0.00021369,2]
[381921560,1756409442120,-655.83,0.00021369,2]
[381921561,1756409442129,-3490.11,0.00021369,2]
[381921562,1756409442139,-2000.0,0.00021416,2]
[381921563,1756409442151,-2000.0,0.00021616,2]
[381921564,1756409442160,-3780.25702106,0.00021627,2]
[381921565,1756409442169,-480.0,0.00021641,2]
[381921566,1756409442178,-494.4,0.00021641,2]
[381921567,1756409442187,-488.72,0.00021641,2]
[381921568,1756409442196,-2520.38,0.00021642,2]
[381921569,1756409442205,-480.0,0.00021642,2]
[381921570,1756409442214,-5512.36,0.00021642,2]
[381921571,1756409442224,-480.0,0.00021642,2]
[381921572,1756409442234,-2445.38,0.00021642,2]
[381921573,1756409442244,-480.0,0.00021642,2]
[381921574,1756409442254,-480.0,0.00021642,2]
[381921575,1756409442263,-715.62,0.00021642,2]
[381921576,1756409442272,-5942.04,0.00021642,2]
[381921577,1756409442282,-552.89,0.00021642,2]
[381921578,1756409442291,-482.39,0.00021642,2]
[381921579,1756409442300,-480.0,0.00021643,2]
[381921580,1756409442311,-480.0,0.00021643,2]
[381921581,1756409442322,-480.0,0.00021643,2]
[381921582,1756409442334,-3344.71,0.00021643,2]
[381921583,1756409442345,-655.83,0.00021643,2]
[381921584,1756409442355,-3490.11,0.00021643,2]
[381921585,1756409442364,-974.0,0.00021813,2]
[381921586,1756409442373,-632.0,0.00021813,2]
[381921587,1756409442382,-2151.0,0.00021813,2]
[381921588,1756409442392,-409.0,0.00021813,2]
[381921589,1756409442401,-417.947,0.00021813,2]
[381921590,1756409442410,-500.0,0.00021821,2]
[381921591,1756409442420,-500.0,0.00021821,2]
[381921592,1756409442430,-480.0,0.00021915,2]
[381921593,1756409442439,-494.4,0.00021915,2]
[381921594,1756409442450,-488.72,0.00021915,2]
[381921596,1756409442459,-2520.38,0.00021916,2]
[381921598,1756409442468,-480.0,0.00021916,2]
[381921599,1756409442477,-5512.36,0.00021916,2]
[381921600,1756409442491,-480.0,0.00021916,2]
[381921602,1756409442500,-2445.38,0.00021916,2]
[381921604,1756409442510,-480.0,0.00021916,2]
[381921605,1756409442519,-480.0,0.00021916,2]
[381921606,1756409442530,-715.62,0.00021916,2]
[381921607,1756409442539,-5942.04,0.00021916,2]
[381921608,1756409442548,-552.89,0.00021916,2]
[381921609,1756409442559,-482.39,0.00021916,2]
[381921610,1756409442568,-480.0,0.00021917,2]
[381921611,1756409442578,-480.0,0.00021917,2]
[381921612,1756409442587,-480.0,0.00021917,2]
[381921614,1756409442597,-3344.71,0.00021917,2]
[381921615,1756409442607,-655.83,0.00021917,2]
[381921617,1756409442616,-3490.11,0.00021917,2]
[381921618,1756409442625,-500.0,0.00021917,2]
[381921619,1756409442634,-438.23862184,0.00021917,2]
[381921620,1756409442643,-163.520633,0.00021918,2]
[381921621,1756409442653,-3451.2869499,0.00021919,2]
[381921622,1756409442662,-687.1827399,0.00021921,2]
[381921623,1756409442671,-2500.0,0.00021964,2]
[381921624,1756409442681,-187.17360401,0.00021973,2]
[381921625,1756409442692,-500.0,0.00021973,2]
[381921626,1756409442701,-310.20720119,0.00021973,2]
[381921627,1756409442711,-500.0,0.00021973,2]
[381921628,1756409442720,-500.0,0.00021973,2]
[381921629,1756409442729,-500.0,0.00021973,2]
[381921630,1756409442738,-645.11635765,0.00021973,2]
[381921631,1756409442747,-160.0,0.00022069,2]
[381921632,1756409442756,-727.47,0.000221,2]
[381921633,1756409442766,-2500.0,0.00022164,2]